bitfinex/quotes_SOLUSD_20250919
["timestamp","ask_amount","ask_price","bid_price","bid_amount"]
[1758264749368,6.92555942,243.96,243.95,0.5]
[1758264750082,6.92555942,243.96,243.91,4.19985989]
[1758264750282,6.92555942,243.96,243.92,0.5]
[1758264750580,6.92555942,243.96,243.93,0.5]
[1758264751180,6.92555942,243.96,243.91,0.1]
[1758264751378,6.92555942,243.96,243.92,0.5]
[1758264751878,6.92555942,243.96,243.91,0.1]
[1758264752175,12.51517061,243.96,243.92,0.5]
[1758264752488,6.92555942,243.95,243.91,0.1]
[1758264752786,6.92555942,243.95,243.92,0.5]
[1758264753176,6.92555942,243.95,243.91,4.19984578]
[1758264753375,6.92555942,243.95,243.92,0.5]
[1758264754970,6.92555942,243.95,243.93,0.5]
[1758264755289,6.92555942,243.95,243.94,4.59936869]
[1758264756586,6.92555942,243.95,243.92,4.65956752]
[1758264756887,6.92555942,243.95,243.93,0.5]
[1758264757081,6.92555942,243.95,243.92,0.06]
[1758264757382,0.67,243.94,243.92,0.06]
[1758264757772,6.92555942,243.94,243.92,0.06]
[1758264758983,6.92555942,243.94,243.92,0.56]
[1758264760084,6.92555942,243.94,243.92,0.06]
[1758264760464,6.92555942,243.94,243.93,0.5]
[1758264761288,6.92555942,243.94,243.92,4.15969173]
[1758264761481,6.92555942,243.94,243.92,0.06]
[1758264762188,6.92555942,243.94,243.92,4.15968841]
[1758264763176,0.67,243.93,243.92,0.06]
[1758264763585,9.07777274,243.93,243.92,0.06]
[1758264763908,21.18283623,243.93,243.92,0.06]
[1758264764196,22.67336675,243.93,243.92,0.06]
[1758264764793,9.07777274,243.93,243.92,0.06]
[1758264764991,41.25777274,243.93,243.92,0.06]
[1758264765695,9.07777274,243.93,243.92,0.06]
[1758264765897,41.25777274,243.93,243.92,0.06]
[1758264766600,45.35730949,243.93,243.92,0.06]
[1758264767095,6.91724222,243.93,243.92,0.06]
[1758264769394,6.91724222,243.93,243.92,4.15970482]
[1758264769789,6.91724222,243.93,243.92,0.06]
[1758264769978,7.58724222,243.93,243.92,0.06]
[1758264770794,45.33730949,243.93,243.92,0.06]
[1758264772905,58.9329035,243.93,243.92,0.06]
[1758264774813,41.21777274,243.93,243.92,0.06]
[1758264774987,39.03724222,243.93,243.92,0.06]
[1758264775187,40.52777274,243.93,243.92,0.06]
[1758264775701,39.05724222,243.93,243.92,0.06]
[1758264776102,6.91724222,243.93,243.92,0.06]
[1758264776288,39.03724222,243.93,243.92,0.06]
[1758264777486,6.91724222,243.93,243.92,0.06]
[1758264777683,39.03724222,243.93,243.92,0.06]
[1758264777886,43.13677897,243.93,243.92,0.06]
[1758264778101,43.83677897,243.93,243.92,0.06]
[1758264778705,9.95191173,243.93,243.92,0.06]
[1758264779005,39.01724222,243.93,243.92,0.06]
[1758264779597,6.91724222,243.93,243.92,0.06]
[1758264779791,39.01724222,243.93,243.92,0.06]
[1758264780604,6.91724222,243.93,243.92,0.06]
[1758264781001,6.91724222,243.93,243.92,4.15970482]
[1758264781195,6.91724222,243.93,243.92,0.06]
[1758264782801,6.91724222,243.93,243.92,4.15970482]
[1758264783296,6.91724222,243.93,243.92,0.06]
[1758264783811,6.91724222,243.93,243.92,4.15970482]
[1758264785210,6.91724222,243.93,243.92,0.06]
[1758264786813,6.91724222,243.93,243.92,4.15970482]
[1758264787209,32.06,243.97,243.92,4.65970482]
[1758264787402,34.69169428,243.98,243.93,0.5]
[1758264787711,2.63169428,243.97,243.93,0.5]
[1758264788118,2.63169428,243.97,243.94,0.5]
[1758264788423,2.63169428,243.97,243.92,14.90896687]
[1758264788631,2.63169428,243.97,243.93,0.5]
[1758264788994,2.63169428,243.97,243.94,14.34779043]
[1758264789217,2.63169428,243.97,243.95,0.5]
[1758264789405,2.63169428,243.97,243.96,0.5]
[1758264790420,2.63169428,243.97,243.96,26.5]
[1758264791212,0.03,244.01,243.97,0.28432314]
[1758264791419,0.03,244.01,243.98,0.5]
[1758264791630,0.03,244.01,243.99,26.0]
[1758264792006,0.03,244.01,244.0,0.5]
[1758264792401,0.03,244.04,244.0,0.5]
[1758264792603,0.03,244.04,244.0,0.78432314]
[1758264792831,0.03,244.04,244.03,0.28432314]
[1758264793004,0.03,244.04,244.03,26.28432314]
[1758264793209,0.03,244.04,244.03,30.88217996]
[1758264793426,0.03,244.04,244.03,30.38217996]
[1758264793808,0.03,244.04,244.03,30.59785682]
[1758264794435,0.03,244.04,244.03,4.09785682]
[1758264795341,0.03,244.04,244.01,14.34367443]
[1758264795916,0.03,244.04,244.02,0.5]
[1758264796414,0.03,244.04,244.01,14.34367443]
[1758264797344,0.7,244.03,244.01,4.09819269]
[1758264797638,0.7,244.02,243.98,4.0985689]
[1758264797842,0.7,244.01,243.97,2.3330578]
[1758264798039,2.3330578,244.03,243.97,2.3330578]
[1758264798343,0.7,244.0,243.97,2.3330578]
[1758264798553,2.3330578,244.03,243.94,32.56]
[1758264798724,0.7,243.99,243.96,2.3330578]
[1758264798921,0.7,244.01,243.98,2.3330578]
[1758264799121,0.7,244.01,243.99,2.3330578]
[1758264799420,0.73,244.04,244.0,2.3330578]
[1758264799620,0.03,244.04,244.02,2.3330578]
[1758264799941,0.7,244.03,243.98,2.3330578]
[1758264800140,0.7,244.02,243.99,2.3330578]
[1758264800332,0.73,244.04,244.0,2.3330578]
[1758264800533,0.7,244.03,244.0,2.3330578]
[1758264800746,0.03,244.04,243.96,32.58]
[1758264800747,0.7,244.02,243.99,4.09843839]
[1758264800950,0.03,244.04,244.01,2.3330578]
[1758264801478,0.73,244.04,244.02,2.3330578]
[1758264802163,0.73,244.04,243.99,14.34475996]
[1758264802323,0.73,244.04,244.02,2.3330578]
[1758264802941,0.7,244.03,243.99,2.3330578]
[1758264803139,0.7,244.02,243.99,2.3330578]
[1758264803339,0.7,244.01,243.97,4.09886461]
[1758264803528,0.03,244.04,243.97,4.09886461]
[1758264803529,0.7,244.0,243.97,4.09886461]
[1758264803736,4.09651386,244.11,244.1,9.24]
[1758264803942,8.76262946,244.11,244.1,9.24]
[1758264804434,4.09651386,244.11,244.1,9.24]
[1758264804747,52.58516567,244.11,244.1,9.24]
[1758264805925,55.60822347,244.11,244.1,9.24]
[1758264806356,53.27516567,244.11,244.1,9.24]
[1758264806653,20.71516567,244.11,244.1,9.24]
[1758264806857,55.56822347,244.11,244.1,9.24]
[1758264807052,65.82950813,244.11,243.95,4.75905609]
[1758264807272,2.3330578,244.03,243.96,0.66]
[1758264807554,2.3330578,244.05,243.98,2.3330578]
[1758264807729,2.3330578,244.05,243.99,2.9930578]
[1758264807930,3.0230578,244.06,244.0,2.3330578]
[1758264808457,3.0230578,244.06,244.0,6.43141845]
[1758264808650,0.69,244.06,244.0,6.43141845]
[1758264809238,0.69,244.06,244.0,7.09141845]
[1758264809940,135.0230578,244.1,244.03,2.3330578]
[1758264810146,135.0230578,244.1,244.03,2.9930578]
[1758264810540,132.69,244.1,244.03,2.9930578]
[1758264810757,2.3330578,244.08,244.02,2.3330578]
[1758264811073,0.03,244.06,244.0,4.09836065]
[1758264811241,2.3330578,244.03,243.98,4.09860991]
[1758264811444,0.69,244.03,243.98,4.09860991]
[1758264811638,2.3330578,244.04,243.98,7.09166771]
[1758264811952,0.03,244.06,243.96,0.06]
[1758264811953,2.3330578,244.02,243.96,28.3930578]
[1758264812259,3.0230578,244.02,243.96,32.49207815]
[1758264812761,3.0230578,244.02,243.96,28.3930578]
[1758264812977,2.3330578,244.01,243.96,0.06]
[1758264813669,0.69,244.0,243.96,0.06]
[1758264814462,2.3330578,244.03,243.97,0.66]
[1758264814652,0.69,244.04,243.98,2.3330578]
[1758264814853,0.69,244.04,243.97,0.66]
[1758264815051,3.0230578,244.04,243.97,0.66]
[1758264815373,3.0230578,244.04,243.97,2.9930578]
[1758264815550,2.3630578,244.06,243.99,2.3330578]
[1758264815749,2.3630578,244.06,243.96,14.40660069]
[1758264815750,0.03,244.06,244.0,2.3330578]
[1758264815957,0.03,244.06,243.99,2.3330578]
[1758264816172,4.12736752,244.06,243.99,6.43148555]
[1758264816344,7.15042532,244.06,243.99,7.09148555]
[1758264816770,0.03,244.06,244.0,2.3330578]
[1758264817076,0.03,244.06,244.01,2.3330578]
[1758264817583,0.03,244.06,244.02,2.3330578]
[1758264817753,0.03,244.06,244.02,2.9930578]
[1758264818153,0.03,244.06,244.02,0.66]
[1758264818356,0.03,244.06,244.02,2.9930578]
[1758264818746,0.03,244.06,244.02,7.0910762]
[1758264818944,0.03,244.06,244.02,2.9930578]
[1758264819144,0.03,244.06,244.02,7.09106187]
[1758264819347,0.03,244.06,244.03,0.66]
[1758264819745,0.03,244.06,244.02,6.43106187]
[1758264819945,0.03,244.06,244.02,7.09106187]
[1758264820249,0.03,244.06,244.02,0.66]
[1758264821177,3.0230578,244.05,243.98,2.3330578]
[1758264821350,2.3330578,244.03,243.96,3.0530578]
[1758264821550,3.0230578,244.04,243.97,2.3330578]
[1758264821750,0.69,244.04,243.98,2.3330578]
[1758264821957,0.69,244.04,243.99,2.3330578]
[1758264822357,0.69,244.03,243.97,2.9930578]
[1758264822753,0.69,244.02,243.96,30.15895288]
[1758264822965,0.69,244.02,243.96,7.15201068]
[1758264823362,0.69,244.02,243.97,2.3330578]
[1758264823555,0.03,244.06,243.97,2.3330578]
[1758264823556,4.78757536,244.05,243.97,2.3330578]
[1758264823764,4.78757536,244.05,243.98,0.66]
[1758264823963,2.3330578,244.04,243.98,0.66]
[1758264824473,2.3630578,244.06,243.99,2.3330578]
[1758264824772,2.3630578,244.06,244.0,0.66]
[1758264825068,3.0230578,244.05,243.96,0.72]
[1758264825283,4.0976889,244.04,243.98,2.3330578]
[1758264825481,3.0230578,244.05,243.98,2.3330578]
[1758264826168,0.69,244.05,243.98,2.3330578]
[1758264826377,3.0230578,244.05,243.98,2.3330578]
[1758264826748,7.12062595,244.05,243.96,0.06]
[1758264826952,7.12062595,244.05,243.98,2.9930578]
[1758264827458,13.62559401,244.06,244.0,2.3330578]
[1758264827659,0.03,244.06,244.01,2.9930578]
[1758264827872,0.72,244.06,244.01,2.9930578]
[1758264828070,0.03,244.06,244.02,0.66]
[1758264828263,0.03,244.06,244.02,2.3330578]
[1758264828465,0.72,244.06,244.02,2.3330578]
[1758264828786,0.03,244.06,244.02,2.3330578]
[1758264829081,0.03,244.06,244.03,2.9930578]
[1758264829259,0.03,244.06,244.05,2.3330578]
[1758264829660,0.03,244.06,244.05,2.9930578]
[1758264830969,0.03,244.06,244.05,7.09057879]
[1758264831970,0.03,244.06,244.05,7.37490193]
[1758264832180,0.03,244.06,244.05,39.73490193]
[1758264833589,0.03,244.06,244.05,42.06795973]
[1758264834283,0.03,244.06,244.05,42.04795973]
[1758264835262,0.03,244.06,244.05,9.70795973]
[1758264835594,0.03,244.06,244.05,42.02795973]
[1758264836088,0.03,244.06,244.05,55.62355374]
[1758264836261,0.03,244.1,244.09,26.0]
[1758264836463,0.03,244.1,244.09,60.91738094]
[1758264836862,0.03,244.1,244.09,42.90297495]
[1758264837076,0.03,244.1,244.09,75.20297495]
[1758264837275,0.03,244.1,244.09,79.29982447]
[1758264837878,0.03,244.1,244.09,78.45725839]
[1758264838391,0.03,244.13,244.12,26.28432314]
[1758264838569,0.03,244.13,244.12,27.77481486]
[1758264838768,0.03,244.13,244.12,40.56991715]
[1758264839084,0.03,244.13,244.12,60.74481486]
[1758264839264,0.03,244.13,244.12,64.84116091]
[1758264839464,0.03,244.13,244.12,32.56116091]
[1758264839877,0.03,244.13,244.12,64.84116091]
[1758264841985,0.03,244.13,244.12,66.33165263]
[1758264842181,0.03,244.13,244.12,64.84116091]
[1758264842382,0.03,244.13,244.12,63.35066919]
[1758264842583,0.03,244.13,244.12,63.33066919]
[1758264844087,0.03,244.13,244.12,31.07066919]
[1758264844396,0.03,244.13,244.12,63.31066919]
[1758264844596,0.03,244.13,244.12,76.9062632]
[1758264844800,0.03,244.13,244.12,44.6662632]
[1758264844997,0.03,244.13,244.12,76.8862632]
[1758264845304,0.72,244.23,244.13,0.28432314]
[1758264845482,0.72,244.23,244.14,0.69]
[1758264845682,0.72,244.22,244.15,0.69]
[1758264845884,0.72,244.22,244.17,0.28432314]
[1758264846083,0.72,244.22,244.17,0.97432314]
[1758264847401,0.72,244.22,244.17,0.28432314]
[1758264847589,0.72,244.22,244.18,4.0953395]
[1758264847792,0.72,244.21,244.18,36.2953395]
[1758264848397,0.72,244.21,244.18,36.2753395]
[1758264848793,0.72,244.21,244.18,4.0953395]
[1758264849105,0.72,244.21,244.18,36.2753395]
[1758264849495,0.72,244.23,244.18,36.55966264]
[1758264850190,0.72,244.23,244.18,37.24966264]
[1758264850392,0.03,244.24,244.18,5.06966264]
[1758264850597,0.03,244.24,244.18,37.22966264]
[1758264850791,0.03,244.24,244.18,5.06966264]
[1758264850985,0.03,244.24,244.18,37.22966264]
[1758264851591,0.03,244.24,244.18,5.06966264]
[1758264851903,0.03,244.24,244.19,0.28432314]
[1758264852081,0.72,244.22,244.21,26.0]
[1758264852284,0.72,244.22,244.21,58.14]
[1758264854215,0.72,244.22,244.21,26.0]
[1758264854403,0.72,244.22,244.15,0.28432314]
[1758264854588,0.72,244.22,244.17,0.28432314]
[1758264854909,4.81469338,244.22,244.07,0.69]
[1758264855116,1.49025162,244.19,244.08,47.16942789]
[1758264855290,0.72,244.18,244.09,0.69]
[1758264855491,0.72,244.18,244.12,0.28432314]
[1758264855699,1.49025162,244.13,244.01,0.79]
[1758264855903,15.08584563,244.17,244.01,0.79]
[1758264855904,1.49025162,244.11,244.02,36.23802475]
[1758264856190,0.72,244.1,244.05,4.09752099]
[1758264856407,0.72,244.09,244.06,32.12]
[1758264856597,0.72,244.08,244.06,32.12]
[1758264856909,0.72,244.07,244.06,32.12]
[1758264857490,0.72,244.1,244.06,32.12]
[1758264858309,13.59559401,244.2,244.07,4.09718523]
[1758264858511,0.72,244.13,244.08,0.28432314]
[1758264858692,0.72,244.13,244.09,32.12]
[1758264859291,0.72,244.16,244.1,0.97432314]
[1758264859789,4.09508692,244.2,244.1,0.97432314]
[1758264859995,0.72,244.19,244.1,0.97432314]
[1758264860296,0.72,244.18,244.1,0.97432314]
[1758264860511,0.72,244.18,244.12,0.28432314]
[1758264860812,0.72,244.18,244.13,32.1]
[1758264861009,0.72,244.17,244.13,32.1]
[1758264861215,0.72,244.2,244.14,0.28432314]
[1758264861720,0.72,244.2,244.14,26.28432314]
[1758264861911,0.72,244.19,244.15,32.12]
[1758264862104,0.72,244.18,244.15,32.12]
[1758264862298,4.0946137,244.23,244.15,36.21578013]
[1758264862616,0.72,244.21,244.16,0.28432314]
[1758264863213,0.72,244.2,244.16,0.28432314]
[1758264863406,0.72,244.2,244.17,32.1]
[1758264863795,4.12434675,244.24,244.16,0.28432314]
[1758264863995,0.72,244.19,244.17,32.08]
[1758264864325,4.12434675,244.24,244.14,0.28432314]
[1758264864326,0.72,244.18,244.14,0.28432314]
[1758264864506,0.72,244.18,244.15,32.08]
[1758264864709,0.72,244.17,244.15,32.08]
[1758264865434,4.12434675,244.24,244.15,32.08]
[1758264865637,0.68,244.23,244.15,32.08]
[1758264865803,0.68,244.23,244.16,0.28432314]
[1758264866334,0.68,244.23,244.17,4.09550722]
[1758264866506,0.03,244.24,244.19,26.0]
[1758264866699,0.03,244.24,244.2,32.06]
[1758264867017,0.68,244.23,244.2,32.06]
[1758264867196,0.68,244.22,244.2,32.06]
[1758264867399,0.03,244.24,244.2,32.06]
[1758264867593,0.03,244.22,244.2,32.06]
[1758264868406,0.71,244.22,244.2,32.06]
[1758264868918,0.03,244.22,244.2,32.06]
[1758264869127,0.03,244.22,244.2,36.15499373]
[1758264870225,0.03,244.22,244.2,36.85499373]
[1758264870436,0.03,244.22,244.2,36.15499373]
[1758264870935,0.03,244.22,244.1,33.59559401]
[1758264870936,0.68,244.21,244.12,0.7]
[1758264871101,0.68,244.21,244.13,32.02]
[1758264871296,0.71,244.22,244.14,0.98432314]
[1758264872524,4.12473075,244.22,244.15,4.09584271]
[1758264872731,4.12473075,244.22,244.16,32.02]
[1758264872732,0.68,244.21,244.16,32.02]
[1758264872967,0.03,244.22,244.16,32.72]
[1758264873468,0.71,244.22,244.16,32.72]
[1758264873638,0.71,244.22,244.16,32.02]
[1758264874534,0.71,244.22,244.17,4.09550722]
[1758264874765,0.68,244.21,244.17,4.09550722]
[1758264875139,0.03,244.22,244.17,4.09550722]
[1758264875448,0.68,244.2,244.13,0.28432314]
[1758264875649,0.68,244.2,244.14,26.0]
[1758264876245,0.03,244.22,244.15,32.02]
[1758264876564,0.03,244.22,244.15,32.72]
[1758264876763,0.71,244.22,244.16,4.09567496]
[1758264878466,0.03,244.22,244.17,0.98432314]
[1758264878762,0.68,244.21,244.18,26.0]
[1758264878964,4.1247178,244.22,244.19,32.0]
[1758264879262,0.68,244.2,244.19,32.0]
[1758264879634,4.8047178,244.22,244.19,32.0]
[1758264879836,0.68,244.21,244.19,32.0]
[1758264880038,0.68,244.2,244.19,32.0]
[1758264880337,0.68,244.2,244.15,26.0]
[1758264880539,0.03,244.22,244.16,32.0]
[1758264880745,0.68,244.21,244.16,32.0]
[1758264880958,0.68,244.2,244.16,32.0]
[1758264881563,0.68,244.2,244.17,31.98]
[1758264882057,0.71,244.22,244.17,31.98]
[1758264882260,0.68,244.21,244.17,31.98]
[1758264883155,0.03,244.22,244.18,0.7]
[1758264883358,0.03,244.22,244.19,0.7]
[1758264883560,0.03,244.22,244.19,4.79511948]
[1758264883860,0.03,244.22,244.2,32.24432314]
[1758264884082,0.03,244.22,244.2,32.94432314]
[1758264884238,0.03,244.22,244.21,0.7]
[1758264885057,0.03,244.22,244.21,58.92432314]
[1758264885637,0.03,244.22,244.21,63.01915955]
[1758264886260,0.03,244.22,244.21,31.07915955]
[1758264886870,0.03,244.22,244.21,63.01915955]
[1758264887545,0.03,244.22,244.21,31.07915955]
[1758264887745,0.03,244.22,244.21,63.01915955]
[1758264889272,0.71,244.22,244.16,10.99908149]
[1758264889472,0.68,244.21,244.16,0.06]
[1758264889863,0.68,244.2,244.17,31.94]
[1758264890160,0.03,244.22,244.18,0.7]
[1758264890670,0.03,244.22,244.18,0.98432314]
[1758264890980,0.03,244.22,244.19,4.09517179]
[1758264891178,0.03,244.22,244.2,31.94]
[1758264891356,0.03,244.22,244.21,0.28432314]
[1758264891553,0.03,244.22,244.21,0.98432314]
[1758264892161,0.03,244.24,244.23,26.28432314]
[1758264892363,0.03,244.24,244.23,58.22432314]
[1758264892571,0.03,244.24,244.23,58.92432314]
[1758264893079,0.03,244.24,244.23,63.01882422]
[1758264897970,0.71,244.24,244.23,4.37882422]
[1758264898177,0.71,244.24,244.23,36.03450108]
[1758264898477,0.03,244.24,244.23,36.03450108]
[1758264898676,0.03,244.24,244.23,4.09450108]
[1758264898991,0.03,244.24,244.23,31.94]
[1758264898992,0.71,244.24,244.23,31.94]
[1758264899973,0.71,244.24,244.23,36.03450108]
[1758264900489,0.03,244.24,244.23,36.03450108]
[1758264902474,0.03,244.24,244.23,36.99882422]
[1758264904197,0.03,244.24,244.23,4.37882422]
[1758264904503,0.03,244.24,244.23,36.03450108]
[1758264906194,0.03,244.24,244.22,0.06]
[1758264906195,0.71,244.24,244.22,0.06]
[1758264906507,0.71,244.24,244.23,31.92]
[1758264909078,0.03,244.24,244.23,31.92]
[1758264909396,0.03,244.24,244.23,36.01450108]
[1758264909572,0.03,244.24,244.23,36.29882422]
[1758264909773,0.03,244.24,244.23,36.97882422]
[1758264912085,0.03,244.24,244.23,62.29882422]
[1758264913483,0.03,244.24,244.23,62.97882422]
[1758264913684,0.03,244.24,244.23,36.97882422]
[1758264916717,0.2,244.26,244.25,26.0]
[1758264916887,1e-08,244.26,244.25,71.79991715]
[1758264917203,1e-08,244.26,244.25,77.75945043]
[1758264917390,1e-08,244.26,244.25,35.65802223]
[1758264917583,1e-08,244.26,244.25,30.37848895]
[1758264917786,1e-08,244.26,244.25,67.57802223]
[1758264918411,1e-08,244.26,244.25,68.25802223]
[1758264920386,1e-08,244.26,244.25,81.85361624]
[1758264920803,0.2,244.35,244.29,26.0]
[1758264921109,0.2,244.35,244.34,5.27953328]
[1758264921314,0.2,244.35,244.34,37.19953328]
[1758264921626,0.88,244.35,244.34,37.19953328]
[1758264922807,0.88,244.35,244.34,41.29219105]
[1758264923017,0.2,244.35,244.34,41.29219105]
[1758264924090,0.88,244.35,244.34,41.29219105]
[1758264924797,0.2,244.35,244.34,41.29219105]
[1758264924996,0.2,244.35,244.34,41.57651419]
[1758264925189,0.89,244.35,244.34,5.27953328]
[1758264925386,0.89,244.35,244.34,37.19953328]
[1758264926502,0.2,244.35,244.34,37.19953328]
[1758264927224,0.89,244.35,244.34,37.19953328]
[1758264929500,0.89,244.35,244.34,5.27953328]
[1758264929702,0.2,244.35,244.34,37.19953328]
[1758264930430,0.2,244.35,244.34,41.29219105]
[1758264930611,0.2,244.35,244.34,9.37219105]
[1758264930810,0.2,244.35,244.34,41.29219105]
[1758264931025,0.2,244.35,244.34,9.37219105]
[1758264931226,4.09149054,244.41,244.34,36.01265777]
[1758264931443,9.37102382,244.41,244.36,5.27953328]
[1758264931727,9.37102382,244.41,244.37,31.92]
[1758264932032,5.27953328,244.4,244.37,31.92]
[1758264932212,5.27953328,244.4,244.34,4.09263772]
[1758264932213,5.27953328,244.4,244.38,31.92]
[1758264933313,10.06135373,244.39,244.29,5.27953328]
[1758264933524,5.27953328,244.32,244.27,4.09383059]
[1758264933824,3.01728722,244.32,244.28,31.9]
[1758264934435,0.69,244.32,244.28,2.32728722]
[1758264934730,0.69,244.32,244.28,6.42086861]
[1758264934932,2.32728722,244.33,244.28,6.42086861]
[1758264935225,2.32728722,244.35,244.29,34.22728722]
[1758264935405,12.56291969,244.38,244.32,2.32728722]
[1758264935610,0.69,244.39,244.32,34.22728722]
[1758264935811,2.32728722,244.38,244.32,34.22728722]
[1758264936011,2.32728722,244.38,244.33,2.32728722]
[1758264936211,3.01728722,244.38,244.33,2.32728722]
[1758264936418,2.32728722,244.37,244.32,35.99291323]
[1758264936639,2.32728722,244.34,244.32,31.9]
[1758264936827,0.69,244.33,244.31,31.9]
[1758264937127,4.09210277,244.38,244.3,31.9]
[1758264937128,3.01728722,244.32,244.3,31.9]
[1758264937334,2.32728722,244.32,244.27,2.32728722]
[1758264937533,2.32728722,244.3,244.28,31.9]
[1758264937731,0.69,244.29,244.23,4.09448683]
[1758264937940,2.32728722,244.28,244.24,31.9]
[1758264938145,3.01728722,244.28,244.24,31.9]
[1758264938934,0.69,244.27,244.24,31.9]
[1758264939232,2.32728722,244.29,244.24,31.9]
[1758264939439,2.32728722,244.3,244.24,38.32158187]
[1758264939633,2.32728722,244.31,244.25,2.32728722]
[1758264939936,2.32728722,244.3,244.24,34.22728722]
[1758264940242,3.01728722,244.3,244.24,34.22728722]
[1758264940536,3.01728722,244.3,244.24,38.32157355]
[1758264941333,2.32728722,244.29,244.24,31.9]
[1758264942139,3.01728722,244.28,244.24,0.06]
[1758264942329,2.32728722,244.25,244.24,0.06]
[1758264942841,3.01728722,244.25,244.24,0.06]
[1758264943343,7.11145303,244.25,244.24,0.06]
[1758264944534,4.78416581,244.25,244.24,0.06]
[1758264944728,4.78349543,244.29,244.24,0.06]
[1758264944923,2.32728722,244.25,244.24,0.06]
[1758264946736,6.42145303,244.25,244.24,0.06]
[1758264946943,7.11145303,244.25,244.24,0.06]
[1758264948336,6.42145303,244.25,244.24,0.06]
[1758264948942,7.11145303,244.25,244.24,0.06]
[1758264950535,20.70704704,244.25,244.24,0.06]
[1758264953362,52.62704704,244.25,244.24,0.06]
[1758264954136,26.0,244.23,244.22,0.06]
[1758264954444,28.32728722,244.23,244.22,0.06]
[1758264954651,29.01728722,244.23,244.22,0.06]
[1758264955054,30.78450108,244.23,244.22,0.06]
[1758264955358,17.6894246,244.27,244.22,0.77]
[1758264955659,2.32728722,244.25,244.23,0.71]
[1758264955858,17.6894246,244.27,244.23,0.71]
[1758264955859,2.32728722,244.26,244.23,0.71]
[1758264956049,2.32728722,244.26,244.22,0.06]
[1758264956558,2.32728722,244.26,244.22,0.78]
[1758264956748,6.421589,244.25,244.22,0.06]
[1758264957657,2.32728722,244.24,244.22,0.06]
[1758264958545,2.98728722,244.23,244.22,0.06]
[1758264960568,48.50288123,244.23,244.22,0.06]
[1758264961157,52.59738231,244.23,244.22,0.06]
[1758264961855,45.84138058,244.23,244.22,0.06]
[1758264962162,51.10138058,244.23,244.22,0.06]
[1758264963071,51.76138058,244.23,244.22,0.06]
[1758264963763,51.10138058,244.23,244.22,0.06]
[1758264964265,17.69009509,244.23,244.22,0.06]
[1758264964474,51.10138058,244.23,244.22,0.06]
[1758264966469,51.76138058,244.23,244.22,0.06]
[1758264968853,39.59559401,244.2,244.19,1e-08]
[1758264969182,39.59559401,244.17,244.16,0.06]
[1758264969369,73.0068795,244.17,244.07,0.82]
[1758264969556,13.59559401,244.15,244.07,0.82]
[1758264969760,47.0068795,244.14,244.07,0.82]
[1758264969951,47.6668795,244.14,244.07,0.82]
[1758264971388,51.76288998,244.14,244.08,0.72]
[1758264971863,51.10288998,244.14,244.07,0.1]
[1758264972072,37.50729597,244.14,244.11,0.88]
[1758264973086,37.50729597,244.14,244.11,0.16]
[1758264974588,51.76288998,244.14,244.11,0.16]
[1758264974765,13.59559401,244.13,244.11,0.16]
[1758264974963,33.41128549,244.12,244.11,0.16]
[1758264975194,34.07128549,244.12,244.11,0.16]
[1758264976391,51.76322555,244.12,244.11,0.16]
[1758264978000,185.53883418,244.12,244.11,1e-08]
[1758264978201,13.87991715,244.11,244.1,1e-08]
[1758264978405,21.3363446,244.11,244.1,1e-08]
[1758264978586,21.9963446,244.11,244.1,1e-08]
[1758264979474,26.09285846,244.11,244.1,1e-08]